bitfinex/quotes_BTCUSD_20250314
["timestamp","ask_amount","ask_price","bid_price","bid_amount"]
[1741953602247,0.239598,83473.0,83467.0,0.01198]
[1741953602489,0.311979,83474.0,83469.0,0.251587]
[1741953602704,0.239601,83472.0,83469.0,0.24948]
[1741953602919,0.239606,83471.0,83467.0,0.239612]
[1741953603089,0.239604,83471.0,83468.0,0.23961]
[1741953603294,0.239614,83468.0,83465.0,0.1253]
[1741953603474,0.239609,83469.0,83465.0,0.364921]
[1741953603669,0.005,83461.0,83460.0,1e-06]
[1741953603885,0.686133,83461.0,83460.0,1e-06]
[1741953604083,0.551613,83461.0,83460.0,1e-06]
[1741953604294,0.43452,83461.0,83460.0,0.239636]
[1741953604501,0.13452,83461.0,83460.0,1e-06]
[1741953604753,0.251613,83461.0,83460.0,1e-06]
[1741953604917,0.604813,83461.0,83460.0,1e-06]
[1741953606153,0.552613,83461.0,83460.0,1e-06]
[1741953606325,0.687133,83461.0,83460.0,1e-06]
[1741953606532,0.302,83461.0,83460.0,1e-06]
[1741953606878,0.43652,83461.0,83460.0,1e-06]
[1741953607024,0.688133,83461.0,83460.0,1e-06]
[1741953607637,0.553613,83461.0,83460.0,1e-06]
[1741953607822,0.676152,83461.0,83460.0,1e-06]
[1741953608024,0.688133,83461.0,83460.0,1e-06]
[1741953608877,0.43652,83461.0,83460.0,0.239636]
[1741953609075,0.302,83461.0,83460.0,0.239636]
[1741953609282,0.302,83461.0,83460.0,1e-06]
[1741953609564,0.302,83461.0,83460.0,0.239636]
[1741953609763,0.4076807,83461.0,83460.0,0.239636]
[1741953610199,0.302,83461.0,83460.0,1e-06]
[1741953610406,0.302,83461.0,83460.0,0.239636]
[1741953610816,0.302,83461.0,83460.0,1e-06]
[1741953611195,0.302,83461.0,83460.0,0.239636]
[1741953611406,0.002,83461.0,83460.0,0.251617]
[1741953611612,0.002,83461.0,83460.0,0.332217]
[1741953612370,0.001,83461.0,83460.0,0.381317]
[1741953612811,0.001,83461.0,83460.0,0.383317]
[1741953613024,0.76088,83481.0,83479.0,0.251559]
[1741953613229,0.76088,83481.0,83478.0,0.0771]
[1741953613461,0.76088,83481.0,83478.0,0.316682]
[1741953613883,0.79437138,83481.0,83480.0,0.239578]
[1741953614199,0.79437138,83481.0,83480.0,0.251556]
[1741953614402,0.79437138,83481.0,83478.0,0.328662]
[1741953614604,1.03594638,83481.0,83478.0,0.316683]
[1741953614851,0.06496474,83493.0,83480.0,0.011978]
[1741953614852,0.011977,83489.0,83480.0,0.011978]
[1741953615052,0.239561,83486.0,83481.0,0.239575]
[1741953615261,0.239561,83486.0,83482.0,0.23957]
[1741953615462,0.239561,83486.0,83482.0,0.23757]
[1741953615672,0.239565,83485.0,83482.0,0.23757]
[1741953615894,0.239564,83485.0,83481.0,0.251553]
[1741953616481,0.239564,83485.0,83483.0,0.239569]
[1741953616680,0.001,83486.0,83483.0,0.239569]
[1741953616859,0.239561,83486.0,83483.0,0.237569]
[1741953617078,0.011977,83487.0,83483.0,0.237569]
[1741953617482,0.251538,83487.0,83483.0,0.237569]
[1741953617680,0.001,83485.0,83483.0,0.237569]
[1741953617872,0.27032566,83487.0,83483.0,0.237569]
[1741953618071,0.001,83486.0,83483.0,0.237569]
[1741953618271,0.001,83486.0,83484.0,0.239566]
[1741953618475,0.239563,83486.0,83483.0,0.237569]
[1741953618671,0.239563,83486.0,83481.0,0.239572]
[1741953618672,0.239565,83485.0,83481.0,0.239572]
[1741953619497,0.251539,83486.0,83482.0,0.239572]
[1741953620529,0.240561,83486.0,83483.0,0.239568]
[1741953620733,0.001,83486.0,83484.0,0.239566]
[1741953620883,0.001,83486.0,83484.0,0.251544]
[1741953621082,0.25834666,83487.0,83484.0,0.251544]
[1741953621715,0.001,83486.0,83485.0,0.239563]
[1741953622168,0.25834566,83487.0,83485.0,0.239563]
[1741953622380,0.239561,83486.0,83484.0,0.239566]
[1741953622544,0.25834566,83487.0,83484.0,0.239566]
[1741953622930,0.01878766,83487.0,83485.0,0.239563]
[1741953623140,0.01878766,83487.0,83486.0,0.239561]
[1741953623339,0.239563,83486.0,83483.0,0.239567]
[1741953623544,0.25934866,83487.0,83483.0,0.251545]
[1741953624149,0.25834866,83487.0,83483.0,0.251545]
[1741953624585,0.25934866,83487.0,83483.0,0.251545]
[1741953624791,0.25834866,83487.0,83483.0,0.239569]
[1741953625019,0.239565,83485.0,83483.0,0.0003388]
[1741953625217,0.03076466,83487.0,83485.0,0.239561]
[1741953625218,0.01978766,83487.0,83485.0,0.239561]
[1741953625417,0.01995706,83487.0,83485.0,0.239561]
[1741953625857,0.25951606,83487.0,83484.0,0.251544]
[1741953626731,0.25951606,83487.0,83484.0,0.239566]
[1741953626963,0.01995706,83487.0,83486.0,0.251539]
[1741953627322,0.0001694,83487.0,83486.0,0.251539]
[1741953627733,0.0001694,83487.0,83486.0,0.250539]
[1741953628242,0.0011694,83487.0,83486.0,0.250539]
[1741953628484,0.0001694,83487.0,83486.0,0.250539]
[1741953630103,0.0189565,83487.0,83486.0,0.250539]
[1741953630762,0.0189565,83487.0,83486.0,0.379039]
[1741953632579,0.0189565,83487.0,83486.0,0.380039]
[1741953632995,0.0189565,83487.0,83486.0,0.381039]
[1741953633198,0.0189565,83487.0,83486.0,0.371039]
[1741953634224,0.0309335,83487.0,83486.0,0.0506]
[1741953634422,0.2585145,83487.0,83486.0,0.0506]
[1741953634703,0.0189565,83487.0,83486.0,0.0506]
[1741953634854,0.0001694,83487.0,83486.0,0.0506]
[1741953635064,0.011979,83476.0,83475.0,0.0812]
[1741953635427,0.3,83478.0,83461.0,0.1284]
[1741953635428,0.011981,83463.0,83461.0,0.1284]
[1741953635609,0.251608,83463.0,83461.0,0.0472]
[1741953636393,0.239625,83464.0,83461.0,0.0472]
[1741953636600,0.239623,83465.0,83461.0,0.286831]
[1741953637377,0.239625,83464.0,83461.0,0.286831]
[1741953637573,0.239627,83463.0,83461.0,0.0472]
[1741953638091,0.239627,83463.0,83461.0,0.0475388]
[1741953638663,0.239627,83463.0,83461.0,0.0535388]
[1741953638868,0.251606,83464.0,83461.0,0.0535388]
[1741953639066,0.251606,83464.0,83461.0,0.0505388]
[1741953639310,0.239628,83463.0,83461.0,0.0505388]
[1741953639509,0.251609,83463.0,83461.0,0.0505388]
[1741953639708,0.011981,83462.0,83461.0,0.0505388]
[1741953639920,0.011981,83462.0,83461.0,0.0475388]
[1741953640345,0.39173859,83462.0,83461.0,0.0003388]
[1741953640533,0.39173859,83462.0,83461.0,0.0033388]
[1741953640757,0.39173859,83462.0,83461.0,0.0003388]
[1741953641069,0.63136859,83462.0,83461.0,0.0033388]
[1741953641216,0.63136859,83462.0,83461.0,0.0063388]
[1741953641423,0.63136859,83462.0,83461.0,0.0033388]
[1741953642024,0.63136859,83462.0,83441.0,0.0583533]
[1741953642025,0.311985,83432.0,83431.0,0.0008]
[1741953642235,0.551701,83432.0,83431.0,0.0008]
[1741953642437,0.686941,83432.0,83431.0,0.0008]
[1741953642848,0.70574127,83432.0,83431.0,0.0008]
[1741953643628,0.57050127,83432.0,83431.0,0.0008]
[1741953643807,0.70570127,83432.0,83431.0,0.0008]
[1741953644056,0.46864587,83432.0,83431.0,0.0008]
[1741953644270,0.27304187,83432.0,83431.0,0.0008]
[1741953644486,0.2662266,83432.0,83431.0,0.0008]
[1741953646139,0.239721,83430.0,83429.0,0.0718694]
[1741953646342,0.251707,83430.0,83429.0,0.0718694]
[1741953647471,0.27050739,83430.0,83429.0,0.0718694]
[1741953647745,0.27050739,83430.0,83429.0,0.0728694]
[1741953648527,0.27050739,83430.0,83429.0,0.001]
[1741953650262,0.27050739,83430.0,83429.0,0.0011695]
[1741953650508,0.27084639,83430.0,83429.0,0.0011695]
[1741953650710,0.01913939,83430.0,83429.0,0.0011695]
[1741953651669,0.03112539,83430.0,83429.0,0.0011695]
[1741953652150,0.27084639,83430.0,83429.0,0.0011695]
[1741953652306,0.39080728,83430.0,83429.0,0.0011695]
[1741953653238,0.25172,83426.0,83422.0,0.2269115]
[1741953653459,0.23973,83428.0,83424.0,0.239737]
[1741953653933,0.239731,83427.0,83424.0,0.239737]
[1741953654121,0.23973,83428.0,83425.0,0.239736]
[1741953654335,0.239733,83426.0,83423.0,0.011987]
[1741953654459,0.239733,83426.0,83423.0,0.251726]
[1741953654865,0.239733,83426.0,83424.0,0.001]
[1741953655384,0.239731,83427.0,83423.0,0.251726]
[1741953655525,0.03223727,83426.0,83425.0,0.001]
[1741953656035,0.27197027,83426.0,83425.0,0.001]
[1741953656246,0.28395627,83426.0,83425.0,0.001]
[1741953656882,0.239736,83425.0,83422.0,0.239744]
[1741953657348,0.239736,83425.0,83424.0,0.001]
[1741953657542,0.23973,83427.0,83424.0,0.239737]
[1741953657691,0.23973,83427.0,83425.0,0.001]
[1741953658114,0.23973,83427.0,83424.0,0.239737]
[1741953658756,0.239735,83426.0,83423.0,0.239741]
[1741953658956,0.23973,83427.0,83424.0,0.239737]
[1741953659160,0.23973,83427.0,83424.0,0.239738]
[1741953659456,0.28528803,83426.0,83424.0,0.001]
[1741953659765,0.239734,83426.0,83424.0,0.001]
[1741953659967,0.239736,83425.0,83424.0,0.001]
[1741953660168,0.239736,83425.0,83422.0,0.218743]
[1741953660600,0.15453939,83430.0,83425.0,0.239735]
[1741953660894,0.15453939,83430.0,83423.0,0.011987]
[1741953660895,0.45453939,83430.0,83429.0,0.239724]
[1741953661130,0.239726,83429.0,83425.0,0.25172]
[1741953661367,0.239736,83425.0,83424.0,0.002]
[1741953661539,0.011986,83424.0,83419.0,0.011987]
[1741953661758,0.011986,83424.0,83421.0,0.239747]
[1741953662053,0.239742,83423.0,83421.0,0.239746]
[1741953662446,0.251726,83424.0,83421.0,0.239746]
[1741953662660,0.251726,83424.0,83423.0,0.0001695]
[1741953662865,0.251725,83425.0,83423.0,0.0001695]
[1741953663046,0.239739,83424.0,83423.0,0.0001695]
[1741953663243,0.251725,83425.0,83423.0,0.0001695]
[1741953663452,0.239725,83429.0,83425.0,0.239733]
[1741953663649,0.11904167,83428.0,83426.0,0.239733]
[1741953663866,0.31913939,83430.0,83428.0,0.239727]
[1741953664252,0.31913939,83430.0,83429.0,0.25171]
[1741953664847,0.31913939,83430.0,83429.0,0.239724]
[1741953665038,0.239724,83429.0,83426.0,0.239733]
[1741953665267,0.251725,83424.0,83423.0,0.0021695]
[1741953665472,0.35915574,83424.0,83423.0,0.0021695]
[1741953665886,0.35915574,83424.0,83423.0,0.0001695]
[1741953666551,0.10743074,83424.0,83423.0,0.0001695]
[1741953666763,0.239733,83426.0,83424.0,0.239737]
[1741953667665,0.239731,83427.0,83424.0,0.228737]
[1741953667869,0.239733,83426.0,83423.0,0.2439105]
[1741953668028,0.239737,83425.0,83423.0,0.2419105]
[1741953668427,0.239733,83426.0,83424.0,0.002]
[1741953668634,0.239733,83426.0,83423.0,0.2419105]
[1741953668834,0.239739,83425.0,83423.0,0.0001695]
[1741953669044,0.239739,83425.0,83424.0,0.001]
[1741953669383,0.251725,83425.0,83424.0,0.003]
[1741953669757,0.251725,83425.0,83424.0,0.001]
[1741953670000,0.01913939,83430.0,83427.0,0.011986]
[1741953670242,0.01913939,83430.0,83429.0,0.320724]
[1741953672061,0.01913939,83430.0,83429.0,0.33271]
[1741953672460,0.01913939,83430.0,83429.0,0.081]
[1741953672903,0.25886039,83430.0,83429.0,0.081]
[1741953673077,0.27084639,83430.0,83429.0,0.081]
[1741953673523,0.27084639,83430.0,83424.0,0.0809]
[1741953673524,0.239736,83425.0,83424.0,0.0809]
[1741953673742,0.251722,83425.0,83424.0,0.0809]
[1741953674371,0.239733,83426.0,83424.0,0.0809]
[1741953674573,0.251718,83427.0,83424.0,0.0809]
[1741953675020,0.251722,83425.0,83424.0,0.002]
[1741953675218,0.11996089,83425.0,83424.0,0.243737]
[1741953675421,0.11996089,83425.0,83424.0,0.241737]
[1741953675772,0.11996089,83425.0,83424.0,0.239737]
[1741953676007,0.11996089,83425.0,83424.0,0.240737]
[1741953676420,0.11996089,83425.0,83424.0,0.239737]
[1741953676799,0.11996089,83425.0,83424.0,0.241737]
[1741953677010,0.239729,83428.0,83424.0,0.003]
[1741953677213,0.251722,83425.0,83424.0,0.002]
[1741953677689,0.251722,83425.0,83424.0,0.004]
[1741953678027,0.251722,83425.0,83424.0,0.002]
[1741953678572,2.251722,83425.0,83424.0,0.003]
[1741953678779,2.37168289,83425.0,83424.0,0.002]
[1741953679210,2.37168289,83425.0,83424.0,0.004]
[1741953680421,2.39048441,83425.0,83424.0,0.004]
[1741953681258,2.69048441,83425.0,83424.0,0.004]
[1741953683129,2.69048441,83425.0,83424.0,0.002]
[1741953683587,0.551725,83424.0,83423.0,0.0001695]
[1741953683678,0.67168589,83424.0,83423.0,0.0001695]
[1741953683886,0.551725,83424.0,83423.0,0.0001695]
[1741953684910,0.687245,83424.0,83423.0,0.0001695]
[1741953686053,0.43552,83424.0,83423.0,0.0001695]
[1741953686252,0.675259,83424.0,83423.0,0.0001695]
[1741953686427,0.687245,83424.0,83423.0,0.0001695]
[1741953688306,0.80720589,83424.0,83423.0,0.0001695]
[1741953692030,0.82600986,83424.0,83423.0,0.0001695]
[1741953693422,0.70604897,83424.0,83423.0,0.0001695]
[1741953697858,6.38658197,83424.0,83423.0,0.0001695]
[1741953698075,0.251777,83407.0,83406.0,0.06081954]
[1741953699748,0.251777,83407.0,83406.0,0.05980897]
[1741953700743,0.251777,83407.0,83406.0,0.06380897]
[1741953700950,0.6647947,83407.0,83406.0,0.004]
[1741953701192,2.69240113,83407.0,83406.0,0.004]
[1741953701354,0.68360113,83407.0,83406.0,0.004]
[1741953701557,0.68360113,83407.0,83406.0,0.008]
[1741953701930,0.68360113,83407.0,83406.0,0.004]
[1741953702349,0.551779,83406.0,83392.0,0.0476]
[1741953702552,0.60166575,83406.0,83393.0,0.0794]
[1741953702992,0.551779,83406.0,83393.0,0.331216]
[1741953703323,0.686739,83406.0,83394.0,0.239825]
[1741953703524,0.686739,83406.0,83393.0,0.319226]
[1741953704125,0.686739,83406.0,83394.0,0.239824]
[1741953704350,0.686739,83406.0,83393.0,0.319227]
[1741953704535,0.239821,83396.0,83393.0,0.2975658]
[1741953704704,0.239824,83395.0,83393.0,0.0577388]
[1741953704937,0.239825,83394.0,83393.0,0.0577388]
[1741953705111,0.26614673,83394.0,83393.0,0.0577388]
[1741953706916,0.26614673,83394.0,83393.0,0.0597388]
[1741953707329,0.01433073,83394.0,83393.0,0.0617388]
[1741953707531,0.25863224,83395.0,83393.0,0.0597388]
[1741953707888,0.25863224,83395.0,83393.0,0.0617388]
[1741953708728,0.239825,83394.0,83393.0,0.0597388]
[1741953709336,0.31870917,83394.0,83393.0,0.0597388]
[1741953711981,0.33070017,83394.0,83393.0,0.0399084]
[1741953712178,0.33070017,83394.0,83393.0,0.0041696]
[1741953712385,0.33070017,83394.0,83393.0,0.0021696]
[1741953712766,0.33070017,83394.0,83393.0,0.0041696]
[1741953714127,0.46570017,83394.0,83393.0,0.0041696]
[1741953714270,0.386816,83394.0,83393.0,0.0041696]
[1741953718094,0.686816,83394.0,83393.0,0.0041696]
[1741953718801,0.251846,83384.0,83383.0,0.0300696]
[1741953719457,0.27065576,83384.0,83383.0,0.0300696]
[1741953719856,0.251846,83384.0,83383.0,0.0300696]
[1741953720057,0.251846,83384.0,83383.0,0.0340696]
[1741953720822,0.6513831,83384.0,83383.0,0.0340696]
[1741953721314,0.6513831,83384.0,83383.0,0.004]
[1741953721515,0.551846,83384.0,83383.0,0.0051694]
[1741953721715,0.56107024,83384.0,83383.0,0.0041694]
[1741953721970,0.30922424,83384.0,83383.0,0.0041694]
[1741953722142,0.58602183,83384.0,83383.0,0.0011694]
[1741953722346,0.58602183,83384.0,83383.0,0.0021694]
[1741953722750,0.60483272,83384.0,83383.0,0.0021694]
[1741953722949,0.60483272,83384.0,83383.0,0.0001694]
[1741953723162,0.60483272,83384.0,83383.0,0.0021694]
[1741953723570,0.32803513,83384.0,83383.0,0.0021694]
[1741953723783,0.16319513,83384.0,83383.0,0.2540184]
[1741953723992,0.16319513,83384.0,83383.0,0.2550184]
[1741953724199,0.46319513,83384.0,83383.0,0.2550184]
[1741953724402,0.46319513,83384.0,83383.0,0.0021694]
[1741953724755,0.53829614,83384.0,83383.0,0.0031694]
[1741953724952,0.16319513,83384.0,83383.0,0.0031694]
[1741953725157,0.16319513,83384.0,83383.0,0.2550184]
[1741953725526,0.02803513,83384.0,83383.0,0.2550184]
[1741953725817,0.00922424,83384.0,83383.0,0.2550184]
[1741953726223,0.13516,83386.0,83385.0,0.239851]
[1741953726459,0.239851,83385.0,83383.0,0.0031694]
[1741953726658,0.251846,83384.0,83383.0,0.0031694]
[1741953727146,0.251846,83384.0,83383.0,0.0021694]
[1741953727709,0.251846,83384.0,83383.0,0.0001694]
[1741953728095,0.551846,83384.0,83383.0,0.0011694]
[1741953728299,0.67180689,83384.0,83383.0,0.0011694]
[1741953728740,0.69061812,83384.0,83383.0,0.0041694]
[1741953730969,0.239868,83379.0,83375.0,0.011994]
[1741953731193,0.239862,83382.0,83378.0,0.239871]
[1741953731415,0.27066523,83384.0,83380.0,0.239865]
[1741953731416,0.3,83383.0,83380.0,0.239865]
[1741953731593,0.374862,83382.0,83379.0,0.239866]
[1741953731789,0.135,83382.0,83379.0,0.239866]
[1741953732163,0.37486,83382.0,83379.0,0.239866]
[1741953732365,0.135,83382.0,83381.0,0.239862]
[1741953732665,0.01881123,83384.0,83381.0,0.239862]
[1741953732666,0.25866523,83384.0,83383.0,0.0786]
[1741953733070,0.01881123,83384.0,83383.0,0.0786]
[1741953733315,0.01881123,83384.0,83383.0,0.3186264]
[1741953733489,0.01915003,83384.0,83383.0,0.3186264]
[1741953733898,0.25900403,83384.0,83383.0,0.0787694]
[1741953734096,0.01915003,83384.0,83383.0,0.0787694]
[1741953734399,0.01915003,83384.0,83383.0,0.3186264]
[1741953734623,0.01915003,83384.0,83383.0,0.3306184]
[1741953736075,0.01915003,83384.0,83383.0,0.0787694]
[1741953736294,0.29088555,83384.0,83383.0,0.0787694]
[1741953736572,0.29088555,83384.0,83383.0,0.0001694]
[1741953736783,0.30287755,83384.0,83383.0,0.0001694]
[1741953737794,0.05103155,83384.0,83383.0,0.0001694]
[1741953738001,0.05103155,83384.0,83380.0,0.011993]
[1741953738196,0.239859,83383.0,83380.0,0.251858]
[1741953738553,0.01915003,83384.0,83380.0,0.251855]
[1741953738724,0.01915003,83384.0,83383.0,0.239857]
[1741953739494,0.01915003,83384.0,83383.0,0.251849]
[1741953739907,0.23986,83382.0,83380.0,0.001]
[1741953740147,0.239862,83383.0,83381.0,0.239862]
[1741953740557,0.239859,83382.0,83378.0,0.091493]
[1741953740811,0.26991914,83382.0,83378.0,0.091493]
[1741953741109,0.03114203,83384.0,83378.0,0.091493]
[1741953741110,0.25900403,83384.0,83381.0,0.239862]
[1741953742422,0.239857,83383.0,83381.0,0.239862]
[1741953742625,0.239857,83383.0,83381.0,0.240862]
[1741953743088,0.239857,83383.0,83381.0,0.001]
[1741953743293,0.25900403,83384.0,83381.0,0.001]
[1741953743294,0.27099603,83384.0,83381.0,0.001]
[1741953743523,0.25900403,83384.0,83381.0,0.240862]
[1741953743720,0.06788111,83383.0,83381.0,0.240862]
[1741953743928,0.06788111,83383.0,83381.0,0.239861]
[1741953744127,0.30774011,83383.0,83380.0,0.239864]
[1741953744430,0.30774011,83383.0,83381.0,0.001]
[1741953745038,0.30774011,83383.0,83379.0,0.239863]
[1741953745039,0.239859,83382.0,83379.0,0.239863]
[1741953745245,0.33971812,83381.0,83379.0,0.239863]
[1741953745455,0.09985512,83381.0,83380.0,0.001]
[1741953745678,0.09985512,83381.0,83380.0,0.240865]
[1741953745890,0.09985512,83381.0,83379.0,0.239863]
[1741953746119,0.09985512,83381.0,83380.0,0.239865]
[1741953747955,0.09985512,83381.0,83379.0,0.252856]
[1741953748177,0.10864144,83380.0,83379.0,0.251856]
[1741953748439,0.239868,83379.0,83378.0,0.0795]
[1741953749232,0.011994,83375.0,83374.0,0.0316776]
[1741953749548,0.251874,83375.0,83374.0,0.0001694]
[1741953749779,0.6034466,83375.0,83374.0,0.0001694]
[1741953750049,0.6823466,83375.0,83374.0,0.0001694]
[1741953750279,0.3,83359.0,83354.0,0.2181094]
[1741953750510,0.3,83359.0,83352.0,0.0792]
[1741953750511,0.251937,83354.0,83352.0,0.0792]
[1741953750710,0.239925,83360.0,83354.0,0.23994]
[1741953750984,0.011995,83362.0,83354.0,0.239938]
[1741953751226,0.011995,83362.0,83354.0,0.011997]
[1741953751467,0.3,83369.0,83363.0,0.011995]
[1741953751680,0.3,83366.0,83364.0,0.23991]
[1741953751920,0.13512,83367.0,83365.0,0.239908]
[1741953752179,0.13516,83369.0,83368.0,0.239897]
[1741953752675,0.32302271,83380.0,83368.0,0.239897]
[1741953752676,0.011993,83379.0,83373.0,0.011994]
[1741953752892,0.13524,83379.0,83375.0,0.011994]
[1741953753124,0.13524,83379.0,83378.0,0.239871]
[1741953753410,0.13524,83379.0,83378.0,0.251864]
[1741953753635,0.15405215,83379.0,83378.0,0.251864]
[1741953754321,0.08342134,83379.0,83377.0,0.239874]
[1741953754549,0.239874,83378.0,83375.0,0.239877]
[1741953754778,0.011994,83375.0,83374.0,0.0756]
[1741953755002,0.239882,83374.0,83369.0,0.011994]
[1741953755198,0.239885,83373.0,83370.0,0.239892]
[1741953755411,0.251891,83369.0,83367.0,0.0493]
[1741953755636,0.251895,83368.0,83367.0,0.0493]
[1741953756327,0.239914,83363.0,83362.0,0.0778]
[1741953756779,0.239903,83367.0,83362.0,0.0778]
[1741953756780,0.251896,83368.0,83362.0,0.0778]
[1741953757011,0.31871377,83367.0,83362.0,0.0778]
[1741953757235,0.239914,83363.0,83359.0,0.0478]
[1741953757491,0.011995,83362.0,83359.0,0.0478]
[1741953757946,0.2399,83368.0,83364.0,0.011995]
[1741953758185,0.02901174,83373.0,83362.0,0.011995]
[1741953758415,0.239898,83369.0,83366.0,0.239905]
[1741953758636,0.13536,83371.0,83367.0,0.011995]
[1741953758858,0.01881416,83369.0,83368.0,0.251895]
[1741953759081,0.01881416,83369.0,83367.0,0.251897]
[1741953759332,0.2926364,83369.0,83365.0,0.239908]
[1741953759565,0.2926364,83369.0,83366.0,0.001]
[1741953759856,0.239902,83368.0,83366.0,0.001]
[1741953760074,0.251898,83367.0,83366.0,0.001]
[1741953760301,0.37185889,83367.0,83366.0,0.001]
[1741953760870,0.67185889,83367.0,83366.0,0.002]
[1741953761052,0.67185889,83367.0,83366.0,0.001]
[1741953761282,0.251919,83360.0,83357.0,0.0813]
[1741953761486,0.251919,83360.0,83350.0,0.0456]
[1741953761487,0.251943,83352.0,83350.0,0.0456]
[1741953761891,0.2707597,83352.0,83350.0,0.0456]
[1741953762121,0.2707597,83352.0,83347.0,0.0001694]
[1741953762395,0.239963,83346.0,83345.0,0.0673389]
[1741953763034,0.239954,83349.0,83346.0,0.23996]
[1741953763218,0.01394547,83346.0,83345.0,0.0673389]
[1741953763427,0.0188167,83352.0,83349.0,0.239954]
[1741953763630,0.2587627,83352.0,83349.0,0.239954]
[1741953763941,0.0188167,83352.0,83351.0,0.251946]
[1741953764218,0.3,83357.0,83356.0,0.239934]
[1741953764575,0.239918,83362.0,83358.0,0.011996]
[1741953764803,0.13552,83361.0,83357.0,0.251927]
[1741953765004,0.38896956,83361.0,83358.0,0.239928]
[1741953765199,0.41916787,83361.0,83358.0,0.239928]
[1741953765588,0.17924687,83361.0,83359.0,0.239925]
[1741953765780,0.17924687,83361.0,83358.0,0.239928]
[1741953766006,0.239928,83359.0,83356.0,0.239932]
[1741953766381,0.239923,83360.0,83357.0,0.239931]
[1741953766585,0.09369919,83359.0,83358.0,0.239928]
[1741953766812,0.15104856,83361.0,83360.0,0.239923]
[1741953767041,0.14904856,83361.0,83357.0,0.239931]
[1741953767250,0.239925,83360.0,83357.0,0.239931]
[1741953767863,0.239929,83358.0,83354.0,0.011997]
[1741953768065,0.04139686,83357.0,83355.0,0.239937]
[1741953768276,0.28132886,83357.0,83355.0,0.239937]
[1741953768676,0.239937,83355.0,83353.0,0.23994]
[1741953768881,0.29332486,83357.0,83353.0,0.23994]
[1741953769105,0.29332486,83357.0,83354.0,0.239939]
[1741953769340,0.01881593,83357.0,83356.0,0.239934]
[1741953770029,0.01881593,83357.0,83356.0,0.25193]
[1741953770250,0.01981593,83357.0,83356.0,0.25193]
[1741953771148,0.01981593,83357.0,83355.0,0.251933]
[1741953771809,0.01881593,83357.0,83355.0,0.251933]
[1741953772035,0.23994,83354.0,83353.0,0.0001694]
[1741953772528,0.251937,83354.0,83353.0,0.0001694]
[1741953773194,0.01981593,83357.0,83353.0,0.0001694]
[1741953773405,0.01881593,83357.0,83353.0,0.2401114]
[1741953773874,0.01881593,83357.0,83353.0,0.0121664]
[1741953774096,0.01881593,83357.0,83356.0,0.25193]
[1741953774342,0.01881593,83357.0,83356.0,0.239934]
[1741953775387,0.01881593,83357.0,83356.0,0.38363]
[1741953775614,0.01352856,83361.0,83360.0,0.249919]
[1741953775840,0.375428,83366.0,83363.0,0.239912]
[1741953776063,0.239909,83365.0,83363.0,0.237912]
[1741953776313,0.239909,83365.0,83357.0,0.011996]
[1741953776314,0.239921,83361.0,83357.0,0.011996]
[1741953776544,0.239934,83356.0,83348.0,0.0456]
[1741953776769,0.011996,83357.0,83348.0,0.057597]
[1741953776770,0.239938,83355.0,83348.0,0.057597]
[1741953776999,0.239938,83355.0,83351.0,0.25194]
[1741953777226,0.23994,83354.0,83351.0,0.239943]
[1741953777450,0.3034585,83354.0,83348.0,0.0456]
[1741953777682,0.251937,83354.0,83349.0,0.239954]
[1741953777921,0.251937,83354.0,83350.0,0.239949]
[1741953778370,0.251937,83354.0,83348.0,0.297553]
[1741953778605,0.251937,83354.0,83341.0,0.334875]
[1741953778606,0.2707534,83354.0,83341.0,0.334875]
[1741953778876,0.5707534,83354.0,83341.0,0.0829]
[1741953779335,0.5707534,83354.0,83340.0,0.047]
[1741953779562,0.239976,83342.0,83340.0,0.0301694]
[1741953779984,0.239977,83341.0,83340.0,0.0301694]
[1741953780429,0.27079255,83342.0,83340.0,0.0301694]
[1741953780566,0.01881855,83342.0,83341.0,0.251975]
[1741953780974,0.01881855,83342.0,83340.0,0.001]
[1741953781185,0.251975,83341.0,83340.0,0.001]
[1741953781415,0.25597038,83341.0,83340.0,0.001]
[1741953781969,0.25597038,83341.0,83340.0,0.002]
[1741953782196,0.50794538,83341.0,83340.0,0.001]
[1741953782441,0.62790627,83341.0,83340.0,0.001]
[1741953782936,0.251979,83340.0,83339.0,0.0001695]
[1741953783482,0.551979,83340.0,83339.0,0.0001695]
[1741953785516,0.553979,83340.0,83339.0,0.0001695]
[1741953786043,0.554979,83340.0,83339.0,0.0001695]
[1741953786946,0.551979,83340.0,83339.0,0.0001695]
[1741953787172,0.66165345,83340.0,83339.0,0.0001695]
[1741953787406,0.240009,83331.0,83327.0,0.2181855]
[1741953787620,0.240009,83331.0,83328.0,0.240015]
[1741953787863,0.240009,83331.0,83327.0,0.2181855]
[1741953788101,0.2588306,83331.0,83327.0,0.2181855]
[1741953788535,0.08983166,83330.0,83329.0,0.240012]
[1741953788755,0.2588296,83331.0,83328.0,0.240014]
[1741953789226,0.24001,83330.0,83327.0,0.240017]
[1741953789649,0.0188216,83331.0,83327.0,0.252017]
[1741953789926,0.0188216,83331.0,83330.0,0.240009]
[1741953790168,0.0188216,83331.0,83330.0,0.252009]
[1741953790692,0.0188216,83331.0,83330.0,0.333509]
[1741953791138,0.0188216,83331.0,83330.0,0.380109]
[1741953791388,0.03216538,83331.0,83330.0,0.380109]
[1741953791612,0.29012782,83331.0,83330.0,0.1281]
[1741953791835,0.27217138,83331.0,83330.0,0.1281]
[1741953792760,0.27217138,83331.0,83330.0,0.1291]
[1741953792999,0.03216538,83331.0,83330.0,0.369109]
[1741953793462,0.03216538,83331.0,83330.0,0.1291]
[1741953793669,0.12332222,83331.0,83330.0,0.369109]
[1741953794364,0.12332222,83331.0,83330.0,0.0476]
[1741953794840,0.37532822,83331.0,83330.0,0.001]
[1741953795748,0.240016,83328.0,83325.0,0.320023]
[1741953796159,0.240019,83327.0,83325.0,0.08]
[1741953796382,0.08803692,83326.0,83325.0,0.08]
[1741953796868,0.08803692,83326.0,83325.0,0.332025]